Workbook

Sheet Fasi 1-5
B1: Fase 1 | C1: Piano Investimenti | D1: Importo | E1: Ammortamenti Annui
C2: Brevetti | D2: 500000 | E2: =+D2/20 -> 25000
C3: Impianti | D3: 1000000 | E3: =+D3/10 -> 100000
C4: Attrezzature | D4: 800000 | E4: =+D4/12 -> 66666.66667
C5: Totale | D5: =SUM(D2:D4) -> 2300000 | E5: =SUM(E2:E4) -> 191666.6667
D6: Rata | E6: Quota Capitale | F6: Interessi
C7: Finanziamento (7 anni, 5%) | D7: =+PMT(5%,7,D5) -> -397485.5824 | E7: =+D7-F7 -> -282485.5824 | F7: =+IPMT(5%,1,7,D5) -> -115000
B9: Fase 2 | C9: Costi Fissi Industriali | D9: Importo
C10: Costo del lavoro | D10: 200000
C11: Utenze | D11: 10000
C12: Manutenzioni | D12: 50000
C13: Assicurazioni | D13: 25000
C14: Consulenze | D14: 30000
C15: Totale | D15: =SUM(D10:D14) -> 315000
B17: Fase 3 | C17: Costi Variabili Unitari | D17: Importo | E17: Incidenza sul prezzo di vendita
C18: Ricavo per Metro Tessuto Greggio | D18: 3.5
C19: Costo del Filato | D19: 2.5 | E19: =+D19/D18 -> 0.7142857143
C20: Costo dell'energia | D20: 0.3 | E20: =+D20/D18 -> 0.08571428571
C21: Provvigioni | D21: 0.28 | E21: =+D21/D18 -> 0.08
C22: Imballaggi | D22: 0.1 | E22: =+D22/D18 -> 0.02857142857
C23: Tot. Costi Variabili | D23: =SUM(D19:D22) -> 3.18 | E23: =+D23/D18 -> 0.9085714286
C24: M.d.C. Unitario | D24: =+D18-D23 -> 0.32 | E24: =+D24/D18 -> 0.09142857143
B27: Fase 3b-3c | C27: Margine di Produzione | F27: Incidenza su magazzino M.P.
C28: Costo Industriale pieno per Metro T.G. | D28: 3.15 | F28: Incidenza su 100%
C29: =+C19 -> Costo del Filato | D29: =+D19 -> 2.5 | E29: =+D29/$D$28 -> 0.7936507937 | F29: =+E29/(E29+E31) -> 0.9615384615
C30: =+C20 -> Costo dell'energia | D30: =+D20 -> 0.3 | E30: =+D30/$D$28 -> 0.09523809524 | F30: 0
C31: =+C22 -> Imballaggi | D31: =+D22 -> 0.1 | E31: 0.03174603175 | F31: =+E31/(E31+E29) -> 0.03846153846
C32: =+C23 -> Tot. Costi Variabili | D32: =SUM(D29:D31) -> 2.9 | E32: =+D32/D28 -> 0.9206349206
C33: M.d.P. Unitario | D33: =+D28-D32 -> 0.25 | E33: =+D33/D28 -> 0.07936507937 | F33: =SUM(F29:F31) -> 1
B35: Ponderazione Margini per calcolo Valore della Produzione di Break Even | D35: PESI
C36: Peso Vendite | D36: 0.9250125893 | E36: =+(D45-D52)/D45 -> 0.9250125893 | F36: =+D36-E36 -> 0
C37: Peso Delta Magazzino Prodotto Finito | D37: =100%-D36 -> 0.07498741074
C38: M.d.c. Ponderato | D38: =+D36*E24+E33*D37 -> 0.09052396139
B40: Fase 4 | C40: Costi Fissi Operativi | D40: =+D15 -> 315000
B41: Stima primo break even | C41: Finanziamento Piano Investimenti | D41: =-D7 -> 397485.5824
B43: Uscite Finanziarie Fisse | C43: Somma Flussi in Uscita | D43: =SUM(D40:D42) -> 712485.5824
B45: Valore della Produzione | C45: Break Even Finanziario | D45: =+D43/D38 -> 7870684.971 | E45: =+"(Flussi in uscita/M.d.C.% = "&TEXT(D38,"0,00%")&")" -> (Flussi in uscita/M.d.C.% = 9,05%)
B47: Fase 5
B48: Stima CCNC Attivo | C48: Acquisti M.P. Giornalieri | D48: =+(D45/360)*(((E29+E31)*D37)+((E19+E22)*D36)) -> 16376.41572
C49: Magazzino Mat. Prima | D49: =+D48*E49 -> 736938.7074 | E49: 45 | F49: gg
C51: Costo del Venduto Giornaliero | D51: =+(D15+E5+((((E19+E20+E22)*D36)+((E29+E30+E31)*D37))*D45))/360 -> 19673.40956
C52: Magazzino P. Finito | D52: =+D51*E52 -> 590202.2867 | E52: 30 | F52: gg
C54: Crediti V/Clienti | D54: =+SUM(IVA!L4:N4)*(1+IVA!C2) -> 2842300.44 | E54: 90 | F54: gg
B56: Stima CCNC Passivo | C56: Debiti V/Fornitori | D56: =+(IVA!N12+IVA!M12+IVA!L12+IVA!L14+IVA!M14+IVA!N14+IVA!N15+IVA!M15+IVA!L15)*(1+IVA!$C$2) -> 2126673.184 | E56: 90 | F56: gg
C58: CCNC | D58: =+D54+D49+D52-D56 -> 2042768.25

Sheet IVA
B1: Momento 0
B2: Aliquota Iva in vigore | C2: 0.22 | F2: Sviluppo vendite | O2: Check anno
B3: Iva su Investimenti | C3: =+'Fasi 1-5'!D5*C2 -> 506000 | D3: a Credito | F3: 0.04 | G3: 0.1 | H3: 0.14 | I3: 0.14 | J3: 0.12 | K3: 0.14 | L3: 0.12 | M3: 0.1 | N3: 0.1 | O3: =SUM(F3:N3) -> 1
E4: Fatturato mensile | F4: =+'Fase 7 - 7c-d'!$D$3*IVA!F3 -> 291219.3074 | G4: =+'Fase 7 - 7c-d'!$D$3*IVA!G3 -> 728048.2684 | H4: =+'Fase 7 - 7c-d'!$D$3*IVA!H3 -> 1019267.576 | I4: =+'Fase 7 - 7c-d'!$D$3*IVA!I3 -> 1019267.576 | J4: =+'Fase 7 - 7c-d'!$D$3*IVA!J3 -> 873657.9221 | K4: =+'Fase 7 - 7c-d'!$D$3*IVA!K3 -> 1019267.576 | L4: =+'Fase 7 - 7c-d'!$D$3*IVA!L3 -> 873657.9221 | M4: =+'Fase 7 - 7c-d'!$D$3*IVA!M3 -> 728048.2684 | N4: =+'Fase 7 - 7c-d'!$D$3*IVA!N3 -> 728048.2684 | O4: =SUM(F4:N4) -> 7280482.684
E5: Check metri al mese | F5: =+F4/'Fasi 1-5'!$D$18 -> 83205.51639 | G5: =+G4/'Fasi 1-5'!$D$18 -> 208013.791 | H5: =+H4/'Fasi 1-5'!$D$18 -> 291219.3074 | I5: =+I4/'Fasi 1-5'!$D$18 -> 291219.3074 | J5: =+J4/'Fasi 1-5'!$D$18 -> 249616.5492 | K5: =+K4/'Fasi 1-5'!$D$18 -> 291219.3074 | L5: =+L4/'Fasi 1-5'!$D$18 -> 249616.5492 | M5: =+M4/'Fasi 1-5'!$D$18 -> 208013.791 | N5: =+N4/'Fasi 1-5'!$D$18 -> 208013.791 | O5: 2080137.91
E6: Max Capacità produttiva mensile | F6: 300000 | G6: 300000 | H6: 300000 | I6: 300000 | J6: 300000 | K6: 300000 | L6: 300000 | M6: 300000 | N6: 300000
E7: HP realistica? | F7: =+IF(F5<F6,"OK","Non realizzabile") -> OK | G7: =+IF(G5<G6,"OK","Non realizzabile") -> OK | H7: OK | I7: OK | J7: OK | K7: OK | L7: OK | M7: OK | N7: OK
B10: Sviluppo Acquisti a IVA su fatturato
B11: Utenze | C11: =+D28/12 -> 833.3333333 | D11: =+C11 -> 833.3333333 | E11: =+D11 -> 833.3333333 | F11: 833.3333333 | G11: 833.3333333 | H11: 833.3333333 | I11: 833.3333333 | J11: 833.3333333 | K11: 833.3333333 | L11: 833.3333333 | M11: 833.3333333 | N11: 833.3333333 | O11: =SUM(C11:N11) -> 10000
B12: Manutenzioni | C12: =+D29/12 -> 4166.666667 | D12: =+C12 -> 4166.666667 | E12: =+D12 -> 4166.666667 | F12: =+E12 -> 4166.666667 | G12: 4166.666667 | H12: 4166.666667 | I12: 4166.666667 | J12: 4166.666667 | K12: 4166.666667 | L12: 4166.666667 | M12: 4166.666667 | N12: 4166.666667 | O12: =SUM(C12:N12) -> 50000
B13: Consulenze | C13: =+D30/12 -> 2500 | D13: =+C13 -> 2500 | E13: =+D13 -> 2500 | F13: 2500 | G13: 2500 | H13: 2500 | I13: 2500 | J13: 2500 | K13: 2500 | L13: 2500 | M13: 2500 | N13: 2500 | O13: 30000
B14: Filato | C14: =+D36*'Fasi 1-5'!F29 -> 708594.9109 | D14: =+D39*'Fasi 1-5'!F29/2 -> 234207.2566 | E14: =+D14 -> 234207.2566 | F14: =+F4*'Fasi 1-5'!$E$19 -> 208013.791 | G14: =+G4*'Fasi 1-5'!$E$19 -> 520034.4774 | H14: =+H4*'Fasi 1-5'!$E$19 -> 728048.2684 | I14: =+I4*'Fasi 1-5'!$E$19 -> 728048.2684 | J14: =+J4*'Fasi 1-5'!$E$19 -> 624041.3729 | K14: =+K4*'Fasi 1-5'!$E$19 -> 728048.2684 | L14: =+L4*'Fasi 1-5'!$E$19 -> 624041.3729 | M14: =+M4*'Fasi 1-5'!$E$19 -> 520034.4774 | N14: =+N4*'Fasi 1-5'!$E$19 -> 520034.4774 | O14: 6377354.198
B15: Imballaggio | C15: =+D36*'Fasi 1-5'!F31 -> 28343.79644 | D15: =+D39*'Fasi 1-5'!F31/2 -> 9368.290265 | E15: =+D15 -> 9368.290265 | F15: =+F4*'Fasi 1-5'!$E$22 -> 8320.551639 | G15: =+G4*'Fasi 1-5'!$E$22 -> 20801.3791 | H15: =+H4*'Fasi 1-5'!$E$22 -> 29121.93074 | I15: =+I4*'Fasi 1-5'!$E$22 -> 29121.93074 | J15: =+J4*'Fasi 1-5'!$E$22 -> 24961.65492 | K15: =+K4*'Fasi 1-5'!$E$22 -> 29121.93074 | L15: =+L4*'Fasi 1-5'!$E$22 -> 24961.65492 | M15: =+M4*'Fasi 1-5'!$E$22 -> 20801.3791 | N15: =+N4*'Fasi 1-5'!$E$22 -> 20801.3791 | O15: 255094.1679
B16: Energia | D16: =+'Fasi 1-5'!D52*'Fasi 1-5'!E30/2 -> 28104.87079 | E16: =+D16 -> 28104.87079 | F16: =+F4*'Fasi 1-5'!$E$20 -> 24961.65492 | G16: =+G4*'Fasi 1-5'!$E$20 -> 62404.13729 | H16: =+H4*'Fasi 1-5'!$E$20 -> 87365.79221 | I16: =+I4*'Fasi 1-5'!$E$20 -> 87365.79221 | J16: =+J4*'Fasi 1-5'!$E$20 -> 74884.96475 | K16: =+K4*'Fasi 1-5'!$E$20 -> 87365.79221 | L16: =+L4*'Fasi 1-5'!$E$20 -> 74884.96475 | M16: =+M4*'Fasi 1-5'!$E$20 -> 62404.13729 | N16: =+N4*'Fasi 1-5'!$E$20 -> 62404.13729 | O16: 680251.1145
B17: Provvigioni | F17: =+F4*'Fasi 1-5'!$E$21 -> 23297.54459 | G17: =+G4*'Fasi 1-5'!$E$21 -> 58243.86147 | H17: =+H4*'Fasi 1-5'!$E$21 -> 81541.40606 | I17: =+I4*'Fasi 1-5'!$E$21 -> 81541.40606 | J17: =+J4*'Fasi 1-5'!$E$21 -> 69892.63377 | K17: =+K4*'Fasi 1-5'!$E$21 -> 81541.40606 | L17: =+L4*'Fasi 1-5'!$E$21 -> 69892.63377 | M17: =+M4*'Fasi 1-5'!$E$21 -> 58243.86147 | N17: =+N4*'Fasi 1-5'!$E$21 -> 58243.86147 | O17: 582438.6147
B18: Totale | C18: =SUM(C11:C17) -> 744438.7074 | D18: =SUM(D11:D17) -> 279180.4177 | E18: 279180.4177 | F18: 272093.5421 | G18: 668983.8553 | H18: 933577.3974 | I18: 933577.3974 | J18: 801280.6263 | K18: 933577.3974 | L18: 801280.6263 | M18: 668983.8553 | N18: 668983.8553
C20: 1 | D20: 2 | E20: 3 | F20: 4 | G20: 5 | H20: 6 | I20: 7 | J20: 8 | K20: 9 | L20: 10 | M20: 11 | N20: 12
B21: Sviluppo Iva Mensile
B22: Credito | C22: =+C18*$C$2 -> 163776.5156 | D22: =+D18*$C$2 -> 61419.69189 | E22: 61419.69189 | F22: 59860.57926 | G22: 147176.4482 | H22: 205387.0274 | I22: 205387.0274 | J22: 176281.7378 | K22: 205387.0274 | L22: 176281.7378 | M22: 147176.4482 | N22: 147176.4482
B23: Debito | C23: 0 | D23: 0 | E23: 0 | F23: =+F4*$C$2 -> 64068.24762 | G23: =+G4*$C$2 -> 160170.619 | H23: 224238.8667 | I23: 224238.8667 | J23: 192204.7429 | K23: 224238.8667 | L23: 192204.7429 | M23: 160170.619 | N23: 160170.619
B24: Saldo a Credito | C24: =+C3+C22-C23 -> 669776.5156 | D24: =+C24+D22-D23 -> 731196.2075 | E24: =+D24+E22-E23 -> 792615.8994 | F24: =+E24+F22-F23 -> 788408.231 | G24: 775414.0602 | H24: 756562.2209 | I24: 737710.3817 | J24: 721787.3766 | K24: 702935.5374 | L24: 687012.5323 | M24: 674018.3614 | N24: 661024.1906
E25: Picco del credito Iva | J25: Picco esigenze di liquidità
C27: Acquisti ad Iva Fissi
C28: Utenze | D28: =+'Fasi 1-5'!D11 -> 10000
C29: Manutenzioni | D29: =+'Fasi 1-5'!D12 -> 50000
C30: Consulenze | D30: =+'Fasi 1-5'!D14 -> 30000
C31: Totale | D31: =SUM(D28:D30) -> 90000
C32: Totale/12 | D32: =+D31/12 -> 7500
C33: Iva Mensile | D33: =+D32*C2 -> 1650
C35: Acquisti ad Iva Variabili
C36: Acquisti per magazzino M.P. | D36: =+'Fasi 1-5'!D49 -> 736938.7074 | E36: (Immediati)
C37: Iva su Acquisto magazzino M.P. | D37: =+D36*C2 -> 162126.5156 | E37: (caricata su mese 1)
C39: Acquisti per magazzino P.F. | D39: =+'Fasi 1-5'!D52*('Fasi 1-5'!E29+'Fasi 1-5'!E31) -> 487151.0938 | E39: (Creazione nei mesi 2 e 3)
C40: Iva su Acquisti per magazzino P.F. | D40: =+D39*C2 -> 107173.2406 | E40: (caricata su mese 2 e 3)

Sheet Fase 6 Budget di Cassa
B2: 1 | C2: 2 | D2: 3 | E2: 4 | F2: 5 | G2: 6 | H2: 7 | I2: 8 | J2: 9 | K2: 10 | L2: 11 | M2: 12 | N2: TOTALE | O2: TOTALE SENZA IVA (OVE APPLICABILE)
A3: Entrate
A4: Incassi Vendite (iva inclusa) | H4: =+IVA!F4*(1+IVA!$C$2) -> 355287.555 | I4: =+IVA!G4*(1+IVA!$C$2) -> 888218.8874 | J4: =+IVA!H4*(1+IVA!$C$2) -> 1243506.442 | K4: =+IVA!I4*(1+IVA!$C$2) -> 1243506.442 | L4: =+IVA!J4*(1+IVA!$C$2) -> 1065862.665 | M4: =+IVA!K4*(1+IVA!$C$2) -> 1243506.442 | N4: =SUM(B4:M4) -> 6039888.435 | O4: =+N4/(1+IVA!$C$2) -> 4950728.225
A5: Equity Capital | B5: =+'Fase 6 SP'!G12 -> 500000 | N5: =SUM(B5:M5) -> 500000 | O5: =+N5 -> 500000
A6: Finanziamento Investimenti | B6: =+'Fasi 1-5'!D5 -> 2300000 | N6: 2300000 | O6: =+N6 -> 2300000
A7: Totale Entrate | B7: =SUM(B4:B6) -> 2800000 | C7: =SUM(C4:C6) -> 0 | D7: 0 | E7: 0 | F7: 0 | G7: 0 | H7: 355287.555 | I7: 888218.8874 | J7: 1243506.442 | K7: 1243506.442 | L7: 1065862.665 | M7: 1243506.442 | N7: 8839888.435 | O7: 7750728.225
A9: Uscite | N9: =SUM(B9:M9) -> 0 | O9: =+N9/(1+IVA!$C$2) -> 0
A10: Investimenti | B10: =+'Fasi 1-5'!D5*(1+IVA!C2) -> 2806000 | N10: 2806000 | O10: =+N10/(1+IVA!$C$2) -> 2300000
A11: Finanziamento quota Capitale | B11: =-'Fasi 1-5'!E7/12 -> 23540.4652 | C11: =+B11 -> 23540.4652 | D11: =+C11 -> 23540.4652 | E11: 23540.4652 | F11: 23540.4652 | G11: 23540.4652 | H11: 23540.4652 | I11: 23540.4652 | J11: 23540.4652 | K11: 23540.4652 | L11: 23540.4652 | M11: 23540.4652 | N11: 282485.5824 | O11: =+N11 -> 282485.5824
A12: Finanziamento quota Interessi | B12: =-'Fasi 1-5'!F7/12 -> 9583.333333 | C12: =+B12 -> 9583.333333 | D12: =+C12 -> 9583.333333 | E12: 9583.333333 | F12: 9583.333333 | G12: 9583.333333 | H12: 9583.333333 | I12: 9583.333333 | J12: 9583.333333 | K12: 9583.333333 | L12: 9583.333333 | M12: 9583.333333 | N12: 115000 | O12: =+N12 -> 115000
A13: Interessi su PFN a breve | N13: 0 | O13: =+N13 -> 0
N14: 0 | O14: =+N14/(1+IVA!$C$2) -> 0
A15: =+'Fasi 1-5'!C10 -> Costo del lavoro | B15: =+'Fasi 1-5'!D10/12 -> 16666.66667 | C15: =+B15 -> 16666.66667 | D15: =+C15 -> 16666.66667 | E15: =+D15 -> 16666.66667 | F15: 16666.66667 | G15: 16666.66667 | H15: 16666.66667 | I15: 16666.66667 | J15: 16666.66667 | K15: 16666.66667 | L15: 16666.66667 | M15: 16666.66667 | N15: 200000 | O15: =+N15 -> 200000
A16: =+'Fasi 1-5'!C11 -> Utenze | B16: =+IVA!C11*(1+IVA!$C$2) -> 1016.666667 | C16: =+IVA!D11*(1+IVA!$C$2) -> 1016.666667 | D16: =+IVA!E11*(1+IVA!$C$2) -> 1016.666667 | E16: =+IVA!F11*(1+IVA!$C$2) -> 1016.666667 | F16: =+IVA!G11*(1+IVA!$C$2) -> 1016.666667 | G16: =+IVA!H11*(1+IVA!$C$2) -> 1016.666667 | H16: =+IVA!I11*(1+IVA!$C$2) -> 1016.666667 | I16: =+IVA!J11*(1+IVA!$C$2) -> 1016.666667 | J16: =+IVA!K11*(1+IVA!$C$2) -> 1016.666667 | K16: =+IVA!L11*(1+IVA!$C$2) -> 1016.666667 | L16: =+IVA!M11*(1+IVA!$C$2) -> 1016.666667 | M16: =+IVA!N11*(1+IVA!$C$2) -> 1016.666667 | N16: 12200 | O16: =+N16/(1+IVA!$C$2) -> 10000
A17: =+'Fasi 1-5'!C12 -> Manutenzioni | E17: =+IVA!C12*(1+IVA!$C$2) -> 5083.333333 | F17: =+IVA!D12*(1+IVA!$C$2) -> 5083.333333 | G17: =+IVA!E12*(1+IVA!$C$2) -> 5083.333333 | H17: =+IVA!F12*(1+IVA!$C$2) -> 5083.333333 | I17: =+IVA!G12*(1+IVA!$C$2) -> 5083.333333 | J17: =+IVA!H12*(1+IVA!$C$2) -> 5083.333333 | K17: =+IVA!I12*(1+IVA!$C$2) -> 5083.333333 | L17: =+IVA!J12*(1+IVA!$C$2) -> 5083.333333 | M17: =+IVA!K12*(1+IVA!$C$2) -> 5083.333333 | N17: 45750 | O17: =+N17/(1+IVA!$C$2) -> 37500
A18: =+'Fasi 1-5'!C13 -> Assicurazioni | B18: =+'Fasi 1-5'!D13 -> 25000 | N18: 25000 | O18: =+N18 -> 25000
A19: =+'Fasi 1-5'!C14 -> Consulenze | B19: =+IVA!C13*(1+IVA!$C$2) -> 3050 | C19: =+IVA!D13*(1+IVA!$C$2) -> 3050 | D19: =+IVA!E13*(1+IVA!$C$2) -> 3050 | E19: =+IVA!F13*(1+IVA!$C$2) -> 3050 | F19: =+IVA!G13*(1+IVA!$C$2) -> 3050 | G19: =+IVA!H13*(1+IVA!$C$2) -> 3050 | H19: =+IVA!I13*(1+IVA!$C$2) -> 3050 | I19: =+IVA!J13*(1+IVA!$C$2) -> 3050 | J19: =+IVA!K13*(1+IVA!$C$2) -> 3050 | K19: =+IVA!L13*(1+IVA!$C$2) -> 3050 | L19: =+IVA!M13*(1+IVA!$C$2) -> 3050 | M19: =+IVA!N13*(1+IVA!$C$2) -> 3050 | N19: 36600 | O19: =+N19/(1+IVA!$C$2) -> 30000
N20: 0 | O20: =+N20/(1+IVA!$C$2) -> 0
A21: =+'Fasi 1-5'!C19 -> Costo del Filato | E21: =+IVA!C14*(1+IVA!$C$2) -> 864485.7913 | F21: =+IVA!D14*(1+IVA!$C$2) -> 285732.8531 | G21: =+IVA!E14*(1+IVA!$C$2) -> 285732.8531 | H21: =+IVA!F14*(1+IVA!$C$2) -> 253776.825 | I21: =+IVA!G14*(1+IVA!$C$2) -> 634442.0625 | J21: =+IVA!H14*(1+IVA!$C$2) -> 888218.8874 | K21: =+IVA!I14*(1+IVA!$C$2) -> 888218.8874 | L21: =+IVA!J14*(1+IVA!$C$2) -> 761330.4749 | M21: =+IVA!K14*(1+IVA!$C$2) -> 888218.8874 | N21: =SUM(E21:M21) -> 5750157.522 | O21: =+N21/(1+IVA!$C$2) -> 4713243.871
A22: =+'Fasi 1-5'!C20 -> Costo dell'energia | C22: =+IVA!D16*(1+IVA!$C$2) -> 34287.94237 | D22: =+IVA!E16*(1+IVA!$C$2) -> 34287.94237 | E22: =+IVA!F16*(1+IVA!$C$2) -> 30453.219 | F22: =+IVA!G16*(1+IVA!$C$2) -> 76133.04749 | G22: =+IVA!H16*(1+IVA!$C$2) -> 106586.2665 | H22: =+IVA!I16*(1+IVA!$C$2) -> 106586.2665 | I22: =+IVA!J16*(1+IVA!$C$2) -> 91359.65699 | J22: =+IVA!K16*(1+IVA!$C$2) -> 106586.2665 | K22: =+IVA!L16*(1+IVA!$C$2) -> 91359.65699 | L22: =+IVA!M16*(1+IVA!$C$2) -> 76133.04749 | M22: =+IVA!N16*(1+IVA!$C$2) -> 76133.04749 | N22: 829906.3597 | O22: =+N22/(1+IVA!$C$2) -> 680251.1145
A23: =+'Fasi 1-5'!C21 -> Provvigioni | E23: =+IVA!F17*(1+IVA!$C$2) -> 28423.0044 | F23: =+IVA!G17*(1+IVA!$C$2) -> 71057.511 | G23: =+IVA!H17*(1+IVA!$C$2) -> 99480.51539 | H23: =+IVA!I17*(1+IVA!$C$2) -> 99480.51539 | I23: =+IVA!J17*(1+IVA!$C$2) -> 85269.01319 | J23: =+IVA!K17*(1+IVA!$C$2) -> 99480.51539 | K23: =+IVA!L17*(1+IVA!$C$2) -> 85269.01319 | L23: =+IVA!M17*(1+IVA!$C$2) -> 71057.511 | M23: =+IVA!N17*(1+IVA!$C$2) -> 71057.511 | N23: 710575.11 | O23: =+N23/(1+IVA!$C$2) -> 582438.6147
A24: =+'Fasi 1-5'!C22 -> Imballaggi | E24: =+IVA!C15*(1+IVA!$C$2) -> 34579.43165 | F24: =+IVA!D15*(1+IVA!$C$2) -> 11429.31412 | G24: =+IVA!E15*(1+IVA!$C$2) -> 11429.31412 | H24: =+IVA!F15*(1+IVA!$C$2) -> 10151.073 | I24: =+IVA!G15*(1+IVA!$C$2) -> 25377.6825 | J24: =+IVA!H15*(1+IVA!$C$2) -> 35528.7555 | K24: =+IVA!I15*(1+IVA!$C$2) -> 35528.7555 | L24: =+IVA!J15*(1+IVA!$C$2) -> 30453.219 | M24: =+IVA!K15*(1+IVA!$C$2) -> 35528.7555 | N24: =SUM(E24:M24) -> 230006.3009 | O24: =+N24/(1+IVA!$C$2) -> 188529.7548
A25: Totale Uscite | B25: =SUM(B10:B24) -> 2884857.132 | C25: 88145.07424 | D25: 88145.07424 | E25: 1016881.912 | F25: 503293.1909 | G25: 562169.4143 | H25: 528935.1451 | I25: 895388.8803 | J25: 1188754.89 | K25: 1159316.778 | L25: 997914.7176 | M25: 1129878.667 | N25: 11043680.88 | O25: 9164448.937
A27: Saldo Entrate-Uscite | B27: =+B7-B25 -> -84857.13187 | C27: =+B27+C7-C25 -> -173002.2061 | D27: -261147.2803 | E27: -1278029.192 | F27: -1781322.383 | G27: -2343491.797 | H27: -2517139.387 | I27: -2524309.38 | J27: -2469557.828 | K27: -2385368.164 | L27: -2317420.216 | M27: -2203792.441 | N27: =+N7-N25 -> -2203792.441 | O27: =+O7-O25 -> -1413720.712
B29: =+IF(B27=MIN($B$27:$M$27),B27,0) -> 0 | C29: =+IF(C27=MIN($B$27:$M$27),C27,0) -> 0 | D29: 0 | E29: 0 | F29: 0 | G29: 0 | H29: 0 | I29: -2524309.38 | J29: 0 | K29: 0 | L29: 0 | M29: 0
B30: =+IF(B29<>0,"Picco esigenze di liquidità","") ->  | C30: =+IF(C29<>0,"Picco esigenze di liquidità","") ->  | I30: Picco esigenze di liquidità
A31: =+SUM(B31:M31) -> 8 | B31: =+IF(B29<0,B2,"") ->  | C31: =+IF(C29<0,C2,"") ->  | I31: 8
A33: DSCR CALCULATION METODO 1 | G33: Data di calcolo = Avvio BP | J33: Data di calcolo = Marzo | M33: Data di calcolo = Giugno
A34: Erogazione di nuova finanza (vedi HP sottostanti) | G34: =+IF($B$42="Sì",-G27,IF($B$43="Sì",SUM(IVA!F4:H4,IVA!F23:H23)*$C$43,$B$44)) -> 2343491.797 | J34: =+IF($B$42="Sì",-J27,IF($B$43="Sì",SUM(IVA!I4:K4,IVA!I23:K23)*$C$43,$C$44)) -> 2469557.828 | M34: =+IF($B$42="Sì",-M27,IF($B$43="Sì",SUM(IVA!L4:N4,IVA!L23:N23)*$C$43,$D$44)) -> 2203792.441
A35: Numeratore | G35: =+G27+(SUM(B11:G11,B12:G12,B13:G13)) -> -2144749.006 | J35: =+J27+(SUM(E11:J11,E12:J12,E13:J13)) -> -2270815.037 | M35: =+M27+(SUM(H11:M11,H12:M12,H13:M13)) -> -2005049.649
A36: SALDO NUMERATORE | G36: =+G34+G35 -> 198742.7912 | J36: =+J34+J35 -> 198742.7912 | M36: =+M34+M35 -> 198742.7912
A38: DENOMINATORE | G38: =+SUM(B11:G11,B12:G12,B13:G13) -> 198742.7912 | J38: =+SUM(E11:J11,E12:J12,E13:J13) -> 198742.7912 | M38: =+SUM(H11:M11,H12:M12,H13:M13) -> 198742.7912
A40: DSCR | G40: =+G36/G38 -> 1 | J40: =+J36/J38 -> 1 | M40: =+M36/M38 -> 1
A42: HP 1 = Copertura totale esigenze | B42: Sì
A43: HP 2 = Utilizzo foglio commerciale | B43: No | C43: 1 | D43: Percentuale portafoglio anticipabile
A44: HP 3 = copertura fissa | B44: 2000000 | C44: 2500000 | D44: 2500000
A45: Date check DSCR (copertura fissa) | B45: 2021-06-30 | C45: 2021-09-30 | D45: 2021-12-31
A70: Sì
A71: No

Sheet DSCR2 RF OIC10
A1: Rendiconto finanziario calcolato con il metodo indiretto | E1: Conto Economico al mese 6
C3: =+'Fase 6 Budget di Cassa'!G33 -> Data di calcolo = Avvio BP | E3: Fatturato | F3: =+SUM(IVA!C4:H4) -> 2038535.152
A4: Rendiconto finanziario secondo con il metodo indiretto al mese | C4: =+'Fase 6 Budget di Cassa'!G2 -> 6 | E4: Variazione Magazzino P.F. | F4: =+'Fasi 1-5'!D52 -> 590202.2867
E5: Valore della Produzione | F5: =+F3+F4 -> 2628737.438
A6: A. Flussi finanziari derivanti dalla gestione reddituale (metodo indiretto) | B6: A. Flussi finanziari derivanti dalla gestione reddituale (metodo indiretto)
E7: =+'Fasi 1-5'!C19 -> Costo del Filato | F7: =-SUM(IVA!C14:H14) -> -2633105.961
B8: Utile (perdita) dell’esercizio | C8: =+F26 -> -90111.5253 | E8: =+'Fasi 1-5'!C20 -> Costo dell'energia | F8: =-SUM(IVA!C16:H16) -> -230941.326
B9: Imposte sul reddito | C9: =+F25 -> 0 | E9: =+'Fasi 1-5'!C21 -> Provvigioni | F9: =-SUM(IVA!C17:H17) -> -163082.8121
B10: Interessi passivi/(interessi attivi) | C10: =-F22-F23 -> 57500 | E10: =+'Fasi 1-5'!C22 -> Imballaggi | F10: =-SUM(IVA!C15:H15) -> -105324.2384
B11: (Dividendi) | E11: Variazione Magazzino M.P. | F11: =+'Fasi 1-5'!D49 -> 736938.7074
B12: (Plusvalenze)/minusvalenze derivanti dalla cessione di attività | E12: Costi Variabili | F12: =SUM(F7:F11) -> -2395515.63
A13: 1. Utile (perdita) dell’esercizio prima d’imposte sul reddito, interessi, dividendi e plus/minusvalenze da cessione | C13: =SUM(C8:C12) -> -32611.5253 | E13: =+'Fasi 1-5'!C10 -> Costo del lavoro | F13: =-'Fase 6 Budget di Cassa'!B15*C4 -> -100000
E14: =+'Fasi 1-5'!C11 -> Utenze | F14: =-'Fase 6 Budget di Cassa'!B16*C4/(1+IVA!C2) -> -5000
B15: Rettifiche per elementi non monetari che non hanno avuto contropartita nel capitale circolante netto | E15: =+'Fasi 1-5'!C12 -> Manutenzioni | F15: =-'Fase 6 Budget di Cassa'!E17*C4/(1+IVA!C2) -> -25000
B16: Accantonamenti al trattamento di fine rapporto di lavoro subordinato | E16: =+'Fasi 1-5'!C13 -> Assicurazioni | F16: =-'Fase 6 Budget di Cassa'!B18 -> -25000
B17: Accantonamenti ai fondi rischi ed oneri | E17: =+'Fasi 1-5'!C14 -> Consulenze | F17: =-'Fase 6 Budget di Cassa'!B19*C4/(1+IVA!C2) -> -15000
B18: Accantonamento ai fondi | C18: =+C16+C17 -> 0 | E18: Costi Fissi | F18: =SUM(F13:F17) -> -170000
B19: Ammortamenti delle immobilizzazioni immateriali | E19: EBITDA/MOL | F19: =+F3+F12+F18+F4 -> 63221.80803
B20: Ammortamenti delle immobilizzazioni materiali | E20: Ammortamenti | F20: =-'Fasi 1-5'!E5/12*C4 -> -95833.33333
B21: Ammortamenti delle immobilizzazioni | C21: =-F20 -> 95833.33333 | E21: EBIT/Red.Operativo | F21: =+F19+F20 -> -32611.5253
B22: Svalutazione dei crediti | E22: Interessi passivi a lungo | F22: =+'Fasi 1-5'!F7/12*C4 -> -57500
B23: Svalutazioni di beni materiali ed immateriali | E23: Interessi passivi a breve | F23: 0
B24: Svalutazione per perdite durevoli di valore | C24: =SUM(C22:C23) -> 0 | E24: Utile Ante Imposte | F24: =+F21+F22+F23 -> -90111.5253
B25: Altre rettifiche per elementi non monetari | E25: Imposte
B26: TOTALE RETTIFICHE | C26: =+C18+C21+C24+C25 -> 95833.33333 | E26: Utile Netto | F26: =+F24+F25 -> -90111.5253
A27: 2. Flusso finanziario prima delle variazioni del ccn | C27: =+C13+C26 -> 63221.80803
B29: Variazioni del capitale circolante netto
B30: Decremento/(incremento) delle rimanenze | C30: =-F39-F40 -> -1327140.994 | E30: Investimenti e Coperture al mese 6
B31: Decremento/(incremento) dei crediti vs clienti | C31: =-F38 -> -2487012.885
B32: Incremento/(decremento) dei debiti verso fornitori | C32: =-F42 -> 1862745.286 | E32: Attivo Immobilizzato | F32: =SUM(F33:F35) -> 2204166.667 | H32: Posizione Finanziaria Netta | I32: =SUM(I33:I34) -> 4502249.006
B33: Decremento/(incremento) ratei e risconti attivi | E33: =+'Fasi 1-5'!C2 -> Brevetti | F33: =+'Fasi 1-5'!D2-('Fasi 1-5'!E2/12*C4) -> 487500 | H33: Pos. Finanziaria Netta a M/L | I33: =+'Fasi 1-5'!D5-('Fase 6 Budget di Cassa'!B11*C4) -> 2158757.209
B34: Incremento/(decremento) ratei e risconti passivi | E34: =+'Fasi 1-5'!C3 -> Impianti | F34: =+'Fasi 1-5'!D3-('Fasi 1-5'!E3/12*C4) -> 950000 | H34: Pos. Finanziaria Netta a Breve | I34: =+F44-I33-I40 -> 2343491.797 | J34: =+I34+'Fase 6 Budget di Cassa'!G27 -> 0 | K34: Double Check
B35: Altre variazioni del capitale circolante netto | C35: =-F41 -> -756562.2209 | E35: =+'Fasi 1-5'!C4 -> Attrezzature | F35: =+'Fasi 1-5'!D4-('Fasi 1-5'!E4/12*C4) -> 766666.6667
B36: TOTALE VARIAZIONI DEL CCN | C36: =SUM(C30:C35) -> -2707970.814
A37: 3. Flusso finanziario dopo le variazioni del ccn | C37: =+C27+C36 -> -2644749.006 | E37: Capitale Circolante | F37: =SUM(F38:F42) -> 2707970.814 | H37: Posizione Tributaria Netta | I37: 0
E38: =+'Fasi 1-5'!C54 -> Crediti V/Clienti | F38: =+SUM(IVA!F4:H4)*(1+IVA!C2) -> 2487012.885
A39: Altre rettifiche | E39: =+'Fasi 1-5'!C49 -> Magazzino Mat. Prima | F39: =+F4 -> 590202.2867
B40: Interessi incassati/(pagati) | C40: =-C10 -> -57500 | E40: =+'Fasi 1-5'!C52 -> Magazzino P. Finito | F40: =+F11 -> 736938.7074 | H40: Mezzi Propri | I40: =+I41+I42 -> 409888.4747
B41: (Imposte sul reddito pagate) | E41: Credito Iva | F41: =+IVA!H24 -> 756562.2209 | H41: Equity | I41: =+'Fase 6 Budget di Cassa'!B5 -> 500000
B42: Dividendi incassati | E42: =+'Fasi 1-5'!C56 -> Debiti V/Fornitori | F42: =-SUM(IVA!F12:H12,IVA!F14:H14,IVA!F15:H15)*(1+IVA!$C$2) -> -1862745.286 | H42: Utile dell'esercizio | I42: =+F26 -> -90111.5253
B43: (Utilizzo del trattamento di fine rapporto di lavoro subordinato)
B44: (Utilizzo dei fondi rischi ed oneri) | E44: Totale Investimenti | F44: =+F32+F37 -> 4912137.481 | H44: Totale Coperture | I44: =+I34+I40+I33 -> 4912137.481
B45: Utilizzo dei fondi
B46: TOTALE ALTRE RETTIFICHE | C46: =+C45+C42+C41+C40 -> -57500
A47: 4. Flusso finanziario dopo le altre rettifiche | C47: =+C37+C46 -> -2702249.006
A49: FLUSSO FINANZIARIO DELLA GESTIONE REDDITUALE (A) | C49: =+C47 -> -2702249.006
A51: B. Flussi finanziari derivanti dall’attività d’investimento | B51: B. Flussi finanziari derivanti dall’attività d’investimento
A53: Immobilizzazioni materiali | C53: =-'Fasi 1-5'!D3-'Fasi 1-5'!D4 -> -1800000
B54: (Investimenti)/Disinvestimenti | C54: =+C53 -> -1800000
A56: Immobilizzazioni immateriali | C56: =-'Fasi 1-5'!D2 -> -500000
B57: (Investimenti)/Disinvestimenti | C57: =+C56 -> -500000
A59: Immobilizzazioni finanziarie
B60: (Investimenti)/Disinvestimenti
A62: Attività Finanziarie non immobilizzate
B63: (Investimenti)/Disinvestimenti
A65: Acquisizione di società controllate al netto delle disponibilità liquide
A67: Cessione di società controllate al netto delle disponibilità liquide
A69: FLUSSO FINANZIARIO DELL'ATTIVITA' DI INVESTIMENTO (B) | C69: =+C57+C54+C60+C63 -> -2300000
A71: C. Flussi finanziari derivanti dall’attività di finanziamento | B71: C. Flussi finanziari derivanti dall’attività di finanziamento
A73: Mezzi di terzi
B74: Incremento/(decremento) debiti a breve verso banche | C74: =+I34 -> 2343491.797
B75: Accensione (Rimborso) finanziamenti | C75: =+'Fasi 1-5'!D5 -> 2300000
B76: Accensione (Rimborso) finanziamenti | C76: =-SUM('Fase 6 Budget di Cassa'!B11:G11) -> -141242.7912
A78: Mezzi propri | B78: Mezzi propri
B79: Aumento/(Diminuzione) di capitale a pagamento | C79: =+I41 -> 500000
B80: Cessione (acquisto) di azioni proprie
B81: Dividendi (e acconti su dividendi) pagati
A82: FLUSSO FINANZIARIO DELL'ATTIVITA' DI FINANZIAMENTO (C) | C82: =+SUM(C74:C81) -> 5002249.006
A84: Incremento (decremento) delle disponibilità liquide (a ± b ± c) | B84: Incremento (decremento) delle disponibilità liquide (a ± b ± c) | C84: =+C82+C69+C49 -> 0
B85: Disponibilità liquide all'inizio dell'esercizio | C85: 0
B87: Disponibilità liquide alla fine dell'esercizio | C87: 0
B89: Check | C89: =+C85-C87+C84 -> 0
B91: DSCR CALCULATION
B92: NUMERATORE | C92: =+C49+C69+C75-C40-C87+C79+C74 -> 198742.7912
B94: DENOMINATORE | C94: =-C76-C46 -> 198742.7912
B96: DSCR | C96: =+C92/C94 -> 1

Sheet Fase 6 CE
B1: Fase 6 | C1: Conto Economico al Momento 0 | F1: Mesi dallo start up
F2: =+'Fase 6 Budget di Cassa'!A31 -> 8
C3: Fatturato | D3: =+SUM(IVA!F4:J4) -> 3931460.649
C4: Variazione Magazzino P.F. | D4: =+'Fasi 1-5'!D52 -> 590202.2867
C5: Valore della Produzione | D5: =+D3+D4 -> 4521662.936
C7: =+'Fasi 1-5'!C19 -> Costo del Filato | D7: =-SUM(IVA!C14:J14) -> -3985195.602
C8: =+'Fasi 1-5'!C20 -> Costo dell'energia | D8: =-SUM(IVA!C16:J16) -> -393192.083
C9: =+'Fasi 1-5'!C21 -> Provvigioni | D9: =-SUM(IVA!C17:J17) -> -314516.8519
C10: =+'Fasi 1-5'!C22 -> Imballaggi | D10: =-SUM(IVA!C15:J15) -> -159407.8241
C11: Variazione Magazzino M.P. | D11: =+IVA!D36 -> 736938.7074
C12: Costi Variabili | D12: =SUM(D7:D11) -> -4115373.654
C13: =+'Fasi 1-5'!C10 -> Costo del lavoro | D13: =-'Fase 6 Budget di Cassa'!B15*F2 -> -133333.3333
C14: =+'Fasi 1-5'!C11 -> Utenze | D14: =-'Fase 6 Budget di Cassa'!B16*F2/(1+IVA!C2) -> -6666.666667
C15: =+'Fasi 1-5'!C12 -> Manutenzioni | D15: =-'Fase 6 Budget di Cassa'!E17/(1+IVA!C2)*F2 -> -33333.33333
C16: =+'Fasi 1-5'!C13 -> Assicurazioni | D16: =-'Fase 6 Budget di Cassa'!B18 -> -25000
C17: =+'Fasi 1-5'!C14 -> Consulenze | D17: =-'Fase 6 Budget di Cassa'!B19*F2/(1+IVA!C2) -> -20000
C18: Costi Fissi | D18: =SUM(D13:D17) -> -218333.3333
C19: EBITDA/MOL | D19: =+D3+D12+D18+D4 -> 187955.9488
C20: Ammortamenti | D20: =-'Fasi 1-5'!E5/12*F2 -> -127777.7778
C21: EBIT/Red.Operativo | D21: =+D19+D20 -> 60178.17101
C22: Interessi passivi a lungo | D22: =+'Fasi 1-5'!F7/12*F2 -> -76666.66667
B25: Fase 7b | C25: Interessi passivi a breve | D25: 0 | E25: 0.05 | F25: su PFN a Breve Iniziale
C26: Utile Ante Imposte | D26: =+D21+D22+D25 -> -16488.49566
B29: Fase 7c | C29: Imposte | F29: IRES | G29: 0.24
C30: Utile Netto | D30: =+D26+D29 -> -16488.49566 | F30: IRAP | G30: 0.039

Sheet Fase 6 SP
B1: Fase 6 | C1: Investimenti e Coperture al Momento 0
C3: Attivo Immobilizzato | D3: =SUM(D4:D6) -> 2172222.222 | F3: Posizione Finanziaria Netta | G3: =SUM(G4:G5) -> 4635985.658
C4: =+'Fasi 1-5'!C2 -> Brevetti | D4: =+'Fasi 1-5'!D2-('Fasi 1-5'!E2/12*'Fase 6 CE'!F2) -> 483333.3333 | F4: Pos. Finanziaria Netta a M/L | G4: =+'Fasi 1-5'!D5-('Fase 6 Budget di Cassa'!B11*'Fase 6 CE'!F2) -> 2111676.278
C5: =+'Fasi 1-5'!C3 -> Impianti | D5: =+'Fasi 1-5'!D3-('Fasi 1-5'!E3/12*'Fase 6 CE'!F2) -> 933333.3333 | F5: Pos. Finanziaria Netta a Breve | G5: =+D15-G4-G11 -> 2524309.38
C6: =+'Fasi 1-5'!C4 -> Attrezzature | D6: =+'Fasi 1-5'!D4-('Fasi 1-5'!E4/12*'Fase 6 CE'!F2) -> 755555.5556
C8: Capitale Circolante | D8: =SUM(D9:D13) -> 2947274.941 | F8: Posizione Tributaria Netta | G8: 0
C9: =+'Fasi 1-5'!C54 -> Crediti V/Clienti | D9: =+SUM(IVA!H4:J4)*(1+IVA!C2) -> 3552875.55
C10: =+'Fasi 1-5'!C49 -> Magazzino Mat. Prima | D10: =+'Fasi 1-5'!D49 -> 736938.7074
C11: =+'Fasi 1-5'!C52 -> Magazzino P. Finito | D11: =+'Fasi 1-5'!D52 -> 590202.2867 | F11: Mezzi Propri | G11: =+G12+G13 -> 483511.5043
C12: Credito Iva | D12: =+IVA!J24 -> 721787.3766 | F12: Equity | G12: 500000
C13: =+'Fasi 1-5'!C56 -> Debiti V/Fornitori | D13: =-SUM(IVA!H12:J12,IVA!H14:J14,IVA!H15:J15)*(1+IVA!$C$2) -> -2654528.98 | F13: Utile dell'esercizio | G13: =+'Fase 6 CE'!D30 -> -16488.49566
C15: Totale Investimenti | D15: =+D3+D8 -> 5119497.163 | F15: Totale Coperture | G15: =+G5+G11+G4 -> 5119497.163

Sheet Fase 7 - 7c-d
B1: Fase 7a | C1: Conto Economico al Momento 1
C3: Fatturato | D3: =+'Fasi 1-5'!D45-'Fase 8'!D11 -> 7280482.684
C4: Variazione Magazzino P.F. | D4: =+'Fase 8'!D11 -> 590202.2867
C5: Valore della Produzione | D5: =+D3+D4 -> 7870684.971
C7: =+'Fasi 1-5'!C19 -> Costo del Filato | D7: =-D3*'Fasi 1-5'!E19-D4*'Fasi 1-5'!E29-D11*'Fasi 1-5'!F29 -> -6377354.198
C8: =+'Fasi 1-5'!C20 -> Costo dell'energia | D8: =-D3*'Fasi 1-5'!E20-D4*'Fasi 1-5'!E30 -> -680251.1145
C9: =+'Fasi 1-5'!C21 -> Provvigioni | D9: =-($D$5)*'Fasi 1-5'!E21*'Fasi 1-5'!D36 -> -582438.6147
C10: =+'Fasi 1-5'!C22 -> Imballaggi | D10: =-D3*'Fasi 1-5'!E22-'Fase 7 - 7c-d'!D4*'Fasi 1-5'!E31-D11*'Fasi 1-5'!F31 -> -255094.1679
C11: Variazione Magazzino M.P. | D11: ='Fase 8'!D10 -> 736938.7074
C12: Costi Variabili | D12: =SUM(D7:D11) -> -7158199.388 | F12: =+D5+D12 -> 712485.5824 | G12: =+F12/D5 -> 0.09052396139
C13: =+'Fasi 1-5'!C10 -> Costo del lavoro | D13: =-'Fasi 1-5'!D10 -> -200000
C14: =+'Fasi 1-5'!C11 -> Utenze | D14: =-'Fasi 1-5'!D11 -> -10000
C15: =+'Fasi 1-5'!C12 -> Manutenzioni | D15: =-'Fasi 1-5'!D12 -> -50000
C16: =+'Fasi 1-5'!C13 -> Assicurazioni | D16: =-'Fasi 1-5'!D13 -> -25000
C17: =+'Fasi 1-5'!C14 -> Consulenze | D17: =-'Fasi 1-5'!D14 -> -30000
C18: Costi Fissi | D18: =SUM(D13:D17) -> -315000
C19: EBITDA/MOL | D19: =+D3+D12+D18+D4 -> 397485.5824
C20: Ammortamenti | D20: =-'Fasi 1-5'!E5 -> -191666.6667
C21: EBIT/Red.Operativo | D21: =+D19+D20 -> 205818.9158
C22: Interessi passivi a lungo | D22: =+'Fasi 1-5'!F7 -> -115000
B25: Fase 7b | C25: Interessi passivi a breve | D25: =-'Fase 7b'!C27 -> -110189.622 | E25: 0.05 | F25: su PFN a Breve Iniziale
C26: Utile Ante Imposte | D26: =+D21+D22+D25 -> -19370.70627
B29: Fase 7c | C29: Imposte | D29: =IF(D26<0,(-(D26-D22-D25)*G30),(-(G29*D26+G30*(+D26-D25-D22)))) -> -8026.937715 | F29: IRES | G29: 0.24
C30: Utile Netto | D30: =+D26+D29 -> -27397.64398 | F30: IRAP | G30: 0.039

Sheet Fase 7b
B3: Proxy PFN Finale
A4: 1 | B4: PFN Iniziale | C4: 0
B6: Flussi di Cassa
B7: Mol | C7: =+'Fase 7 - 7c-d'!D19 -> 397485.5824
B8: CCNC Iniziale | C8: 0
B9: CCNC Finale | C9: =+'Fase 8'!D8 -> 2703792.441
B10: Delta CCNC | C10: =+C8-C9 -> -2703792.441
A11: A | B11: Cash Flow operativo | C11: =+C7+C10 -> -2306306.858
B12: Ammortamenti | C12: =+'Fase 7 - 7c-d'!D20 -> -191666.6667
B13: Investimenti Netti Iniziali | C13: 0
B14: Investimenti Netti Finali | C14: =+'Fasi 1-5'!D5-'Fasi 1-5'!E5 -> 2108333.333
B15: Delta Investimenti | C15: =+C14-C13 -> 2108333.333
A16: B | B16: Flusso per Investimenti | C16: =+C12-C15 -> -2300000
B17: Flusso per Debito a Medio Lungo | C17: =+'Fasi 1-5'!D7 -> -397485.5824
B18: Erogazioni a medio lungo | C18: =+'Fasi 1-5'!D5 -> 2300000
A19: C | B19: Flusso netto debito a M/L | C19: =+C17+C18 -> 1902514.418
A20: D | B20: Cash Flow Fiscale | C20: 0
A21: E | B21: Flusso Equity | C21: =+'Fase 6 SP'!G12 -> 500000
A23: 2 = A+B+C+D+E | B23: Flussi in uscita | C23: =+C11+C16+C19+C20+C21 -> -2203792.441
A25: 1+2 | B25: PFN a Breve Finale pre Oneri Finanziari | C25: =+C4-C23 -> 2203792.441 | D25: =+C25+'Fase 6 Budget di Cassa'!N27 -> 0
B27: Oneri Finanziari | C27: =+AVERAGE(C25)*D27 -> 110189.622 | D27: 0.05

Sheet Fase 8
B1: Fase 8 | C1: Investimenti e Coperture al Momento 1
C3: Attivo Immobilizzato | D3: =+SUM(D4:D6) -> 2108333.333 | F3: Posizione Finanziaria Netta | G3: =SUM(G4:G6) -> 4331496.48
C4: =+'Fase 6 SP'!C4 -> Brevetti | D4: =+'Fasi 1-5'!D2-'Fasi 1-5'!E2 -> 475000 | F4: Pos. Finanziaria Netta a M/L | G4: =+'Fasi 1-5'!D5+'Fasi 1-5'!E7 -> 2017514.418
C5: =+'Fase 6 SP'!C5 -> Impianti | D5: =+'Fasi 1-5'!D3-'Fasi 1-5'!E3 -> 900000 | F5: Pos. Finanziaria Netta a Breve | G5: =+'Fase 7b'!C25 -> 2203792.441
C6: =+'Fase 6 SP'!C6 -> Attrezzature | D6: =+'Fasi 1-5'!D4-'Fasi 1-5'!E4 -> 733333.3333 | F6: Interessi da liquidare | G6: =+'Fase 7b'!C27 -> 110189.622
C8: =+'Fase 6 SP'!C8 -> Capitale Circolante | D8: =SUM(D9:D13) -> 2703792.441 | F8: Posizione Tributaria Netta | G8: =-'Fase 7 - 7c-d'!D29 -> 8026.937715
C9: =+'Fase 6 SP'!C9 -> Crediti V/Clienti | D9: =+'Fasi 1-5'!D54 -> 2842300.44
C10: =+'Fase 6 SP'!C10 -> Magazzino Mat. Prima | D10: =+'Fase 6 SP'!D10 -> 736938.7074
C11: =+'Fase 6 SP'!C11 -> Magazzino P. Finito | D11: =+'Fase 6 SP'!D11 -> 590202.2867 | F11: Mezzi Propri | G11: =+G12+G13 -> 472602.356
C12: Credito Iva | D12: =+IVA!N24 -> 661024.1906 | F12: Equity | G12: =+'Fase 6 SP'!G12 -> 500000
C13: =+'Fase 6 SP'!C13 -> Debiti V/Fornitori | D13: =-'Fasi 1-5'!D56 -> -2126673.184 | F13: Utile dell'esercizio | G13: =+'Fase 7 - 7c-d'!D30 -> -27397.64398
C14: Totale Investimenti | D14: =+D3+D8 -> 4812125.774 | F14: Totale Coperture | G14: =+G8+G11+G3 -> 4812125.774

Sheet Fase 9
B1: Fase 9 | C1: Rendiconto Finanziario (Determ. Cash Flow)
D2: Anno 1
C4: EBITDA/M.O.L. | D4: =+'Fase 7 - 7c-d'!D19 -> 397485.5824
C5: CCNC Iniziale | D5: 0
C6: CCNC Finale | D6: =+'Fase 8'!D8 -> 2703792.441
C7: Variazione Circolante | D7: =+D6-D5 -> 2703792.441
C9: CASH FLOW OPERATIVO | D9: =+D4-D7 -> -2306306.858
C11: Ammortamenti | D11: =+'Fase 7 - 7c-d'!D20 -> -191666.6667
C12: Investimenti Iniziali | D12: 0
C13: Investimenti Finali | D13: =+'Fase 8'!D3 -> 2108333.333
C14: Investimenti a patrimonio | D14: =+D13-D12 -> 2108333.333
C15: Flusso di Cassa per investimenti | D15: =-D14+D11 -> -2300000
C17: CASH FLOW DISPONIBILE | D17: =+D9+D15 -> -4606306.858
C19: Interessi Passivi netti | D19: =+'Fase 7 - 7c-d'!D22+'Fase 7 - 7c-d'!D25 -> -225189.622
C20: PFN Iniziale | D20: 0
C21: PFN Finale | D21: =+'Fase 8'!G3 -> 4331496.48
C22: Variazione dell'indebitamento finanziario | D22: =+D21-D20 -> 4331496.48
C23: Cash Flow per il servizio del debito | D23: =+D22+D19 -> 4106306.858
C25: Cash Flow per la gestione straordinaria | D25: 0
C27: Imposte d'esercizio | D27: =+'Fase 7 - 7c-d'!D29 -> -8026.937715
C28: PTN Iniziale | D28: 0
C29: PTN Finale | D29: =+'Fase 8'!G8 -> 8026.937715
C30: Variazione debiti fiscali | D30: =+D29-D28 -> 8026.937715
C31: Cash Flow Fiscale | D31: =+D27+D30 -> 0
C33: Utile | D33: =+D4+D11+D19+D25+D27 -> -27397.64398
C34: Equity Iniziale | D34: 0
C35: Equity Finale | D35: =+D6+D13-D21-D29 -> 472602.356
C36: Variazione dei mezzi propri | D36: =D35-D34 -> 472602.356
C37: CASH FLOW DALLA PROPRIETA' | D37: =D36-D33 -> 500000

Sheet Fase 10
B2: Fase 10 | C2: MdC | D2: =+'Fasi 1-5'!D38 -> 0.09052396139
C3: Costi Fissi Operativi | D3: =+'Fasi 1-5'!D40 -> 315000
C4: Valore della Produzione | D4: =+'Fasi 1-5'!D45 -> 7870684.971
C5: Interessi Passivi | D5: =+'Fase 7 - 7c-d'!D22+'Fase 7 - 7c-d'!D25 -> -225189.622
C6: PFN | D6: =+'Fase 8'!G3 -> 4331496.48
